bitfinex-derivatives/quotes_SOLF0:USTF0_20250923
["timestamp","ask_amount","ask_price","bid_price","bid_amount"]
[1758585973443,6.9,220.36,220.28,4.0819]
[1758585975238,6.9,220.36,220.29,7.03]
[1758585975638,0.03063298,220.37,220.29,7.03]
[1758585976039,0.03063298,220.37,220.32,4.0813]
[1758585976239,0.03063298,220.37,220.33,7.16]
[1758585978256,0.03063298,220.37,220.35,7.16]
[1758585979140,0.03063298,220.37,220.31,11.2414]
[1758585980747,0.03063298,220.37,220.3,63.4926]
[1758585980945,0.03063298,220.37,220.31,7.16]
[1758585981847,0.03063298,220.37,220.34,4.0808]
[1758585982042,0.03063298,220.37,220.34,11.2408]
[1758585982243,0.03063298,220.37,220.36,7.16]
[1758585982442,0.03063298,220.37,220.36,11.2406]
[1758585985653,7.59,220.43,220.38,4.0802]
[1758585985852,7.59,220.43,220.39,7.16]
[1758585986250,7.59,220.45,220.38,4.0802]
[1758585987150,7.59,220.45,220.39,0.03233061]
[1758586007871,12.67795282,220.45,220.39,0.03233061]
[1758586012481,12.43795282,220.43,220.39,0.03233061]
[1758586014380,5.08795282,220.43,220.39,0.03233061]
[1758586014575,7.35,220.42,220.39,0.03233061]
[1758586014780,7.35,220.4,220.39,0.03233061]
[1758586015380,12.43795282,220.45,220.39,0.03233061]
[1758586015574,109.27,220.45,220.39,0.03233061]
[1758586015780,109.27,220.45,220.4,7.25]
[1758586015972,101.92,220.45,220.39,7.28233061]
[1758586016682,12.43795282,220.46,220.4,4.0797]
[1758586016883,118.57,220.46,220.4,4.0797]
[1758586017479,5.08795282,220.48,220.42,11.3294]
[1758586017781,111.22,220.48,220.42,11.3294]
[1758586018185,12.43795282,220.5,220.45,7.25]
[1758586018379,44.22795282,220.53,220.43,7.25]
[1758586018684,39.14,220.53,220.43,7.25]
[1758586018886,39.14,220.53,220.46,0.03336332]
[1758586019085,39.14,220.53,220.46,7.28336332]
[1758586019579,46.49,220.53,220.46,7.28336332]
[1758586019781,7.35,220.53,220.46,11.36206332]
[1758586020186,7.35,220.53,220.46,0.03336332]
[1758586020375,7.42,220.49,220.46,0.03336332]
[1758586020578,5.08795282,220.5,220.46,0.03336332]
[1758586021281,7.42,220.5,220.46,0.03336332]
[1758586022287,5.08795282,220.52,220.47,4.0785]
[1758586022483,7.42,220.55,220.48,6.96]
[1758586023077,16.54,220.56,220.5,6.96]
[1758586023383,16.54,220.56,220.52,63.4301]
[1758586023588,16.54,220.56,220.54,6.96]
[1758586023792,16.54,220.56,220.5,6.96]
[1758586024287,16.54,220.56,220.51,6.96]
[1758586024486,16.54,220.56,220.5,4.0778]
[1758586024681,16.54,220.56,220.5,11.0378]
[1758586026086,7.42,220.55,220.49,0.02964782]
[1758586027186,5.08795282,220.54,220.49,0.02964782]
[1758586027488,7.42,220.53,220.49,0.02964782]
[1758586027791,7.42,220.51,220.4,6.96]
[1758586027980,12.50795282,220.51,220.4,6.96]
[1758586028887,111.18,220.52,220.4,6.96]
[1758586028888,7.42,220.49,220.4,6.96]
[1758586029485,7.42,220.49,220.37,4.0803]
[1758586029686,12.50795282,220.49,220.37,4.0803]
[1758586029886,12.50795282,220.49,220.36,6.96]
[1758586032093,4.0784,220.48,220.36,6.96]
[1758586032293,7.42,220.47,220.36,6.96]
[1758586032793,0.02861555,220.44,220.36,6.96]
[1758586035295,7.42,220.43,220.32,6.96]
[1758586037298,7.42,220.43,220.33,4.0811]
[1758586037798,7.42,220.43,220.34,7.13]
[1758586039793,12.50795282,220.43,220.34,7.13]
[1758586040390,7.13,220.41,220.29,7.13]
[1758586040591,12.21795282,220.41,220.29,7.13]
[1758586041098,7.13,220.4,220.29,11.2118]
[1758586041297,5.08795282,220.41,220.29,11.2118]
[1758586041697,0.0285523,220.37,220.29,11.2118]
[1758586041893,7.1585523,220.37,220.29,11.2118]
[1758586046104,7.1585523,220.37,220.31,4.0815]
[1758586048502,7.1585523,220.37,220.3,63.4922]
[1758586048807,0.0285523,220.37,220.31,7.13]
[1758586049204,7.1585523,220.37,220.33,7.13]
[1758586049802,7.1585523,220.37,220.32,4.0812]
[1758586050304,7.1585523,220.37,220.33,7.42]
[1758586050503,7.1585523,220.37,220.32,4.0812]
[1758586050698,7.1585523,220.37,220.33,7.42]
[1758586051007,7.1585523,220.37,220.32,4.0812]
[1758586051402,7.1585523,220.37,220.33,7.42]
[1758586052005,0.0285523,220.37,220.32,4.0812]
[1758586052408,0.0285523,220.37,220.34,4.0809]
[1758586052906,0.0285523,220.37,220.29,63.495]
[1758586052907,0.0285523,220.37,220.33,7.42]
[1758586053113,0.0285523,220.37,220.28,63.4985]
[1758586053114,0.0285523,220.37,220.3,63.4933]
[1758586053311,0.0285523,220.37,220.31,7.42]
[1758586054910,0.0285523,220.37,220.34,11.5008]
[1758586055311,0.0285523,220.37,220.3,63.4933]
[1758586055312,7.15,220.36,220.31,4.0813]
[1758586055511,7.15,220.36,220.32,7.42]
[1758586056609,7.15,220.36,220.33,7.42]
[1758586056804,0.0285523,220.37,220.32,4.0811]
[1758586057211,0.0285523,220.37,220.33,7.42]
[1758586057714,0.0285523,220.37,220.32,4.0811]
[1758586057911,0.0285523,220.37,220.33,7.42]
[1758586058108,7.1785523,220.37,220.33,7.42]
[1758586058615,7.1785523,220.37,220.32,4.0811]
[1758586058816,7.1785523,220.37,220.33,7.42]
[1758586059211,7.1785523,220.37,220.32,4.0811]
[1758586059411,7.1785523,220.37,220.33,7.42]
[1758586059915,7.1785523,220.37,220.32,4.0811]
[1758586060114,7.1785523,220.37,220.33,7.42]
[1758586060313,7.1785523,220.37,220.32,4.0811]
[1758586060709,7.1785523,220.37,220.34,7.42]
[1758586060905,0.0285523,220.37,220.32,4.0811]
[1758586061215,0.0285523,220.37,220.3,63.4926]
[1758586061409,0.0285523,220.37,220.32,7.42]
[1758586062314,0.0285523,220.37,220.36,7.42]
[1758586064018,0.0285523,220.37,220.27,7.42]
[1758586064217,7.15,220.36,220.27,7.42]
[1758586065921,7.15,220.36,220.27,11.5021]
[1758586066323,7.15,220.36,220.27,7.42]
[1758586067121,66.27,220.36,220.27,7.42]
[1758586067825,70.3506,220.36,220.27,7.42]
[1758586069423,7.15,220.35,220.23,7.42]
[1758586069723,5.08795282,220.31,220.18,7.42]
[1758586069924,12.23795282,220.31,220.18,7.42]
[1758586070928,7.15,220.29,220.19,7.42]
[1758586071826,7.15,220.29,220.08,13.531976]
[1758586072025,343.12,220.32,220.11,7.42]
[1758586072026,5.08795282,220.25,220.11,7.42]
[1758586072231,7.15,220.24,220.13,7.42]
[1758586072526,37.47,220.24,220.15,7.42]
[1758586073128,0.02913681,220.22,220.15,7.42]
[1758586074325,7.15,220.21,220.15,7.42]
[1758586077637,7.15,220.21,220.1,4.0853]
[1758586077837,7.15,220.21,220.11,7.42]
[1758586083229,7.28,220.21,220.11,7.42]
[1758586083434,7.28,220.19,220.11,7.42]
[1758586084544,0.02884785,220.17,220.12,4.085]
[1758586084745,7.30884785,220.17,220.12,11.075]
[1758586084943,0.02884785,220.17,220.12,4.085]
[1758586085135,0.02884785,220.17,220.13,6.99]
[1758586085741,0.02884785,220.17,220.1,6.99]
[1758586086847,0.02884785,220.17,220.11,4.0852]
[1758586090446,0.02884785,220.17,220.12,6.99]
[1758586090654,0.02884785,220.17,220.13,4.0848]
[1758586090846,0.02884785,220.17,220.14,6.99]
[1758586092049,7.30884785,220.17,220.14,6.99]
[1758586092542,7.30884785,220.17,220.08,6.99]
[1758586093052,7.28,220.17,220.08,6.99]
[1758586095153,7.28,220.17,220.09,4.0854]
[1758586095345,29.24,220.17,220.08,6.99]
[1758586096261,29.24,220.17,220.04,7.62]
[1758586097350,7.35,220.12,220.04,7.62]
[1758586098060,0.02878604,220.1,220.04,7.62]
[1758586099161,0.02878604,220.1,219.99,11.7073]
[1758586099162,7.35,220.09,219.99,11.7073]
[1758586099961,7.35,220.08,219.99,7.62]
[1758586100156,0.02924395,220.06,219.99,7.62]
[1758586100361,7.35,220.05,219.99,7.62]
[1758586100562,7.35,220.05,219.93,4.0884]
[1758586100761,7.35,220.05,219.94,7.62]
[1758586101558,0.02927243,220.02,219.94,7.62]
[1758586101756,0.02927243,220.02,219.95,4.0881]
[1758586102055,0.02927243,220.02,219.96,7.62]
[1758586102455,0.02927243,220.02,219.97,4.0878]
[1758586102660,0.02927243,220.02,219.98,7.62]
[1758586102860,0.02927243,220.02,219.97,4.0878]
[1758586103062,0.02927243,220.02,219.97,63.5879]
[1758586103361,0.02927243,220.02,220.0,7.62]
[1758586103863,0.02927243,220.02,220.01,11.7071]
[1758586107170,7.35,220.09,220.05,7.62]
[1758586108264,16.56,220.08,220.05,7.62]
[1758586108465,16.56,220.08,220.05,7.65380449]
[1758586109165,16.56,220.08,220.06,7.62]
[1758586109767,7.35,220.07,220.05,0.03380449]
[1758586112573,7.27,220.07,220.05,0.03380449]
[1758586113666,16.56,220.08,220.05,0.03380449]
[1758586114070,16.56,220.08,219.99,7.64]
[1758586114071,7.27,220.07,219.99,7.64]
[1758586114573,7.27,220.07,219.91,7.64]
[1758586115276,0.03235623,220.01,219.91,7.64]
[1758586115774,0.03235623,220.01,219.94,4.0882]
[1758586115974,0.03235623,220.01,219.95,7.64]
[1758586117078,7.27,220.0,219.86,7.64]
[1758586117566,7.27,220.0,219.88,4.0894]
[1758586117772,0.0324038,219.95,219.89,7.64]
[1758586118367,0.0324038,219.95,219.91,7.64]
[1758586118775,0.0324038,219.95,219.85,7.64]
[1758586119367,0.0324038,219.95,219.89,4.0891]
[1758586119573,0.0324038,219.95,219.9,7.64]
[1758586120073,0.0324038,219.95,219.91,4.0887]
[1758586120572,0.0324038,219.95,219.92,7.64]
[1758586120769,0.0324038,219.95,219.94,7.64]
[1758586120970,28.91795282,220.08,219.98,7.64]
[1758586121171,16.56,220.08,220.02,4.0868]
[1758586121572,16.56,220.08,220.02,7.64]
[1758586121769,16.56,220.08,220.05,4.0861]
[1758586121972,16.56,220.08,220.05,7.64]
[1758586122679,16.56,220.08,220.04,63.60187015]
[1758586122878,16.56,220.08,220.07,11.7259]
[1758586123887,7.27,220.19,220.1,11.7253]
[1758586124567,7.27,220.19,220.12,0.03199107]
[1758586126178,7.27,220.19,220.12,7.67199107]
[1758586126481,7.27,220.24,220.12,7.67199107]
[1758586127482,2.18,220.23,220.12,7.67199107]
[1758586127778,2.18,220.23,220.16,11.7241]
[1758586128571,2.18,220.23,220.17,0.02924959]
[1758586134486,7.27,220.22,220.17,0.02924959]
[1758586135078,7.27,220.22,220.07,7.64]
[1758586135775,2.18,220.23,220.07,11.7258]
[1758586135970,7.27,220.22,220.07,11.7258]
[1758586136384,2.18,220.23,220.07,11.7258]
[1758586136581,7.27,220.22,220.07,11.7258]
[1758586136784,2.18,220.23,220.07,11.7258]
[1758586136983,0.03000264,220.17,220.07,11.7258]
[1758586137179,7.27,220.16,220.07,11.7258]
[1758586137682,7.27,220.16,220.07,7.64]
[1758586137884,7.27,220.16,220.04,4.0864]
[1758586138776,7.27,220.16,220.05,7.64]
[1758586141279,7.51,220.12,220.05,7.64]
[1758586141487,7.51,220.12,220.01,355.2269]
[1758586142185,0.02950714,220.13,220.01,355.2269]
[1758586142381,7.51,220.12,220.01,347.6469]
[1758586142584,7.51,220.12,220.02,7.58]
[1758586144885,0.02950714,220.13,220.04,7.58]
[1758586145775,0.02950714,220.13,220.05,4.0862]
[1758586145981,0.02950714,220.13,220.06,7.58]
[1758586147590,0.02950714,220.13,220.07,11.6659]
[1758586147784,0.02950714,220.13,220.07,7.58]
[1758586150091,7.53950714,220.13,220.09,7.58]
[1758586150292,0.02950714,220.13,220.09,7.58]
[1758586150583,0.02950714,220.13,220.08,4.0857]
[1758586150790,0.02950714,220.13,220.09,7.58]
[1758586151185,0.02950714,220.13,220.05,63.5636]
[1758586151391,0.02950714,220.13,220.06,7.58]
[1758586152892,0.02950714,220.13,220.07,4.0857]
[1758586153688,0.02950714,220.13,220.1,7.58]
[1758586156396,0.02950714,220.13,220.06,11.0759]
[1758586157688,7.29,220.12,220.03,4.0865]
[1758586157894,7.29,220.12,220.01,6.99]
[1758586158694,7.29,220.12,220.01,11.077]
[1758586158892,7.3205121,220.09,220.01,11.077]
[1758586159489,0.0305121,220.09,220.04,63.567]
[1758586159689,2.17,220.15,220.09,6.99]
[1758586160193,2.17,220.15,220.12,4.0849]
[1758586160603,2.17,220.15,220.12,6.99]
[1758586160797,343.42,220.25,220.18,6.99]
[1758586161690,343.42,220.25,220.19,0.03257261]
[1758586164596,7.29,220.24,220.19,0.03257261]
[1758586164802,343.42,220.25,220.19,0.03257261]
[1758586165502,7.29,220.24,220.19,0.03257261]
[1758586165697,343.42,220.25,220.19,0.03257261]
[1758586166297,7.29,220.24,220.19,0.03257261]
[1758586166696,343.42,220.25,220.19,0.03257261]
[1758586166897,7.29,220.24,220.19,0.03257261]
[1758586167802,343.42,220.25,220.19,0.03257261]
[1758586168510,7.29,220.24,220.19,0.03257261]
[1758586169000,343.42,220.25,220.19,0.03257261]
[1758586169504,7.29,220.24,220.19,0.03257261]
[1758586169803,343.42,220.25,220.19,0.03257261]
[1758586169804,7.29,220.22,220.19,0.03257261]
[1758586170409,6.91,220.22,220.19,0.03257261]
[1758586170606,112.04,220.23,220.19,0.03257261]
[1758586170802,6.91,220.22,220.19,0.03257261]
[1758586171009,112.04,220.23,220.19,0.03257261]
[1758586171204,112.0,220.23,220.19,0.03257261]
[1758586172109,6.91,220.22,220.19,0.03257261]
[1758586172711,112.0,220.23,220.19,0.03257261]
[1758586173707,6.91,220.22,220.19,0.03257261]
[1758586173907,112.0,220.23,220.19,0.03257261]
[1758586174309,6.91,220.22,220.19,0.03257261]
[1758586175401,117.08795282,220.23,220.19,0.03257261]
[1758586175809,6.91,220.22,220.19,0.03257261]
[1758586176006,117.08795282,220.23,220.19,0.03257261]
[1758586176409,6.91,220.22,220.19,0.03257261]
[1758586176607,117.08795282,220.23,220.19,0.03257261]
[1758586177014,6.91,220.22,220.19,0.03257261]
[1758586177206,117.08795282,220.23,220.19,0.03257261]
[1758586178106,6.91,220.22,220.19,0.03257261]
[1758586178508,117.08795282,220.23,220.19,0.03257261]
[1758586180014,6.91,220.22,220.19,0.03257261]
[1758586180409,117.08795282,220.23,220.19,0.03257261]
[1758586181015,6.91,220.22,220.19,0.03257261]
[1758586181418,117.08795282,220.23,220.19,0.03257261]
[1758586182016,6.91,220.22,220.19,0.03257261]
[1758586182416,117.08795282,220.23,220.19,0.03257261]
[1758586183017,6.91,220.22,220.19,0.03257261]
[1758586183516,117.08795282,220.23,220.19,0.03257261]
[1758586184614,6.91,220.22,220.19,0.03257261]
[1758586185015,117.08795282,220.23,220.19,0.03257261]
[1758586185709,6.91,220.22,220.19,0.03257261]
[1758586186421,117.08795282,220.23,220.19,0.03257261]
[1758586187016,6.91,220.22,220.19,0.03257261]
[1758586187415,117.08795282,220.23,220.19,0.03257261]
[1758586187921,6.91,220.22,220.19,0.03257261]
[1758586188116,117.08795282,220.23,220.19,0.03257261]
[1758586188521,6.91,220.22,220.19,0.03257261]
[1758586189119,117.08795282,220.23,220.19,0.03257261]
[1758586189324,112.0,220.23,220.19,0.03257261]
[1758586189525,6.91,220.22,220.19,0.03257261]
[1758586190025,112.0,220.23,220.19,0.03257261]
[1758586190216,6.91,220.22,220.19,0.03257261]
[1758586190620,112.0,220.23,220.19,0.03257261]
[1758586190920,6.91,220.22,220.19,0.03257261]
[1758586191127,112.0,220.23,220.19,0.03257261]
[1758586191427,6.91,220.22,220.19,0.03257261]
[1758586191619,112.0,220.23,220.19,0.03257261]
[1758586191824,117.08795282,220.23,220.19,0.03257261]
[1758586192330,6.91,220.22,220.19,0.03257261]
[1758586192625,117.08795282,220.23,220.19,0.03257261]
[1758586192825,6.91,220.22,220.19,0.03257261]
[1758586193822,117.08795282,220.23,220.19,0.03257261]
[1758586194020,6.91,220.22,220.19,0.03257261]
[1758586194522,117.08795282,220.23,220.19,0.03257261]
[1758586194713,121.17095282,220.23,220.19,0.03257261]
[1758586195519,6.91,220.2,220.19,0.03257261]
[1758586195724,123.51795282,220.2,220.06,7.19]
[1758586197027,127.60165282,220.2,220.06,7.19]
[1758586197327,5.08795282,220.19,220.06,7.19]
[1758586197518,0.03107735,220.15,220.06,7.19]
[1758586197716,111.51107735,220.15,220.06,7.19]
[1758586201027,7.59,220.14,220.06,7.19]
[1758586202430,4.0848,220.13,220.06,7.19]
[1758586202730,7.59,220.12,220.01,7.18]
[1758586203722,0.02946192,220.09,220.01,7.18]
[1758586204925,0.02946192,220.09,220.03,7.18]
[1758586207532,0.02946192,220.09,220.04,4.0863]
[1758586208123,0.02946192,220.09,219.98,63.5809]
[1758586208124,0.02946192,220.09,220.05,7.18]
[1758586208326,0.02946192,220.09,220.02,7.18]
[1758586208526,7.59,220.08,220.02,7.18]
[1758586209734,4.11516192,220.09,219.98,11.2675]
[1758586210125,58.81,220.08,219.98,7.18]
[1758586210530,7.62145225,220.06,219.98,7.18]
[1758586211333,7.62145225,220.06,219.98,11.2675]
[1758586211537,7.62145225,220.06,219.98,7.18]
[1758586216438,0.03145225,220.06,219.97,63.5862]
[1758586216636,0.03145225,220.06,219.98,63.5834]
[1758586216833,0.03145225,220.06,219.94,13.57057078]
[1758586217040,0.03145225,220.06,219.95,7.44]
[1758586217234,0.03145225,220.06,219.96,4.0878]
[1758586217542,0.03145225,220.06,219.97,7.44]
[1758586218846,0.03145225,220.06,219.98,4.0875]
[1758586220043,0.03145225,220.06,219.99,7.44]
[1758586221544,7.40145225,220.06,219.99,7.44]
[1758586222047,7.40145225,220.06,220.0,7.44]
[1758586222442,0.03145225,220.06,220.0,7.44]
[1758586222642,0.03145225,220.06,220.02,7.44]
[1758586223144,0.03145225,220.06,220.01,4.0869]
[1758586223344,0.03145225,220.06,220.02,7.44]
[1758586223736,0.03145225,220.06,220.01,4.0869]
[1758586224047,0.03145225,220.06,219.99,7.44]
[1758586224652,0.03145225,220.06,220.0,4.0871]
[1758586224941,0.03145225,220.06,220.01,7.44]
[1758586225142,0.03145225,220.06,220.0,4.0871]
[1758586225343,0.03145225,220.06,220.01,7.44]
[1758586225745,0.03145225,220.06,220.0,4.0871]
[1758586225945,0.03145225,220.06,220.01,7.44]
[1758586226142,0.03145225,220.06,220.0,4.0871]
[1758586226540,0.03145225,220.06,219.98,4.0875]
[1758586226741,0.03145225,220.06,219.99,7.44]
[1758586228650,7.40145225,220.06,219.99,7.44]
[1758586229950,4.0864,220.04,219.99,7.44]
[1758586230256,7.37,220.03,219.95,7.44]
[1758586231545,0.03082522,220.01,219.95,7.44]
[1758586236953,0.03082522,220.01,219.98,7.05]
[1758586237154,0.03082522,220.01,219.95,7.05]
[1758586238055,0.03082522,220.01,219.98,4.0874]
[1758586238654,0.03082522,220.01,219.99,7.05]
[1758586239355,0.03082522,220.01,219.98,4.0874]
[1758586240157,0.03082522,220.01,219.99,7.05]
[1758586241763,0.03082522,220.01,219.97,4.0875]
[1758586241972,0.03082522,220.01,219.98,7.05]
[1758586242258,0.03082522,220.01,219.97,4.0875]
[1758586242458,0.03082522,220.01,219.98,7.05]
[1758586242866,0.03082522,220.01,219.98,11.1373]
[1758586243056,0.03082522,220.01,219.98,4.0873]
[1758586243260,0.03082522,220.01,219.99,7.05]
[1758586244163,0.03082522,220.01,219.98,4.0873]
[1758586244563,0.03082522,220.01,219.99,7.05]
[1758586244764,0.03082522,220.01,219.98,4.0873]
[1758586244964,0.03082522,220.01,219.99,7.05]
[1758586245171,0.03082522,220.01,219.98,4.0873]
[1758586245366,0.03082522,220.01,219.99,7.05]
[1758586245567,0.03082522,220.01,219.98,4.0873]
[1758586245968,0.03082522,220.01,219.99,7.05]
[1758586246869,0.03082522,220.01,219.98,4.0873]
[1758586247072,0.03082522,220.01,219.99,7.05]
[1758586247467,0.03082522,220.01,219.98,4.0873]
[1758586248068,0.03082522,220.01,219.99,7.05]
[1758586248963,0.03082522,220.01,219.98,4.0873]
[1758586249165,0.03082522,220.01,219.99,7.05]
[1758586249365,0.03082522,220.01,219.98,4.0873]
[1758586249571,0.03082522,220.01,219.99,7.05]
[1758586249977,0.03082522,220.01,219.98,4.0873]
[1758586250178,0.03082522,220.01,219.99,7.05]
[1758586251076,0.03082522,220.01,219.98,4.0873]
[1758586251576,0.03082522,220.01,219.99,7.05]
[1758586251769,0.03082522,220.01,219.98,4.0873]
[1758586251969,0.03082522,220.01,219.99,7.05]
[1758586252767,7.50082522,220.01,219.96,4.0878]
[1758586252969,63.5526,220.09,219.97,63.5859]
[1758586252970,5.08795282,220.09,219.97,63.5859]
[1758586253274,5.08795282,220.09,219.99,7.05]
[1758586253669,12.55795282,220.1,219.99,7.05]
[1758586253981,7.47,220.1,219.99,7.05]
[1758586254979,11.5553,220.1,220.02,7.05]
[1758586255772,11.5553,220.1,220.04,0.02868906]
[1758586257083,7.47,220.1,220.04,7.07868906]
[1758586257775,7.47,220.1,220.04,11.16498906]
[1758586259080,4.0848,220.13,220.05,11.136]
[1758586259081,7.47,220.13,220.05,11.136]
[1758586259475,12.55795282,220.13,220.04,0.02868906]
[1758586259674,12.55795282,220.11,220.04,0.02868906]
[1758586259877,7.47,220.09,220.04,0.02868906]
[1758586260083,11.5555,220.09,220.04,0.02868906]
[1758586260280,12.14795282,220.07,219.97,7.05]
[1758586260676,108.38795282,220.07,219.97,7.05]
[1758586261376,7.06,220.04,219.97,7.05]
[1758586261884,7.06,220.02,219.97,7.05]
[1758586262082,7.06,220.01,219.97,7.05]
[1758586262571,0.02932373,220.03,219.97,7.05]
[1758586262774,7.06,220.02,219.97,7.05]
[1758586262973,0.02932373,220.03,219.97,7.05]
[1758586263173,7.06,220.02,219.94,6.97]
[1758586264885,0.02932373,220.03,219.94,6.97]
[1758586265078,7.08932373,220.03,219.94,6.97]
[1758586267487,7.06,220.02,219.9,6.97]
[1758586268281,11.1468,220.02,219.9,6.97]
[1758586268585,0.02924116,219.98,219.9,6.97]
[1758586270192,0.02924116,219.98,219.91,6.97]
[1758586273092,7.08924116,219.98,219.91,6.97]
[1758586273687,7.08924116,219.98,219.91,11.0588]
[1758586274790,7.08924116,219.98,219.91,6.97]
[1758586282699,7.67,219.97,219.88,11.1192]
[1758586282898,7.67,219.97,219.88,4.0892]
[1758586283097,7.67,219.97,219.9,4.0889]
[1758586284104,0.03035315,219.96,219.9,4.0889]
[1758586284799,0.03035315,219.96,219.91,7.03]
[1758586285000,0.03035315,219.96,219.9,4.0889]
[1758586285197,0.03035315,219.96,219.88,7.03]
[1758586286304,0.03035315,219.96,219.92,7.03]
[1758586286499,0.03035315,219.96,219.91,4.0888]
[1758586286818,0.03035315,219.96,219.92,7.03]
[1758586287402,0.03035315,219.96,219.91,4.0888]
[1758586288104,0.03035315,219.96,219.92,7.03]
[1758586288608,0.03035315,219.96,219.91,4.0888]
[1758586288805,0.03035315,219.96,219.94,7.03]
[1758586291209,0.03035315,219.96,219.94,7.21]
[1758586296814,7.34035315,219.96,219.89,7.21]
[1758586297204,7.31,219.96,219.89,7.21]
[1758586297512,4.0881,219.95,219.89,7.21]
[1758586297711,7.31,219.97,219.89,7.21]
[1758586298212,7.31,219.93,219.89,7.21]
[1758586298613,7.31,219.92,219.89,7.21]
[1758586299713,7.31,219.92,219.84,7.21]
[1758586300615,0.02909077,219.9,219.84,7.21]
[1758586304819,0.02909077,219.9,219.84,11.2999]
[1758586305013,0.02909077,219.9,219.85,7.21]
[1758586305220,0.02909077,219.9,219.8,7.21]
[1758586305420,7.31,219.89,219.8,7.21]
[1758586306718,27.38909077,219.9,219.72,21.05334625]
[1758586306916,7.31,219.89,219.73,7.21]
[1758586307820,4.0898,219.86,219.73,4.0921]
[1758586308019,0.03021384,219.83,219.74,7.21]
[1758586308316,3.19992984,219.82,219.74,7.21]
[1758586308521,3.19992984,219.81,219.75,4.0917]
[1758586308822,0.03021384,219.83,219.74,7.21]
[1758586309020,3.19801234,219.82,219.74,7.21]
[1758586309219,3.19801234,219.81,219.79,4.091]
[1758586309413,0.03021384,219.83,219.8,7.21]
[1758586309911,0.03021384,219.83,219.82,7.21]
[1758586310123,12.39795282,219.96,219.82,7.21]
[1758586310420,3.21492747,219.95,219.82,7.21]
[1758586310620,3.21492747,219.94,219.82,7.21]
[1758586310816,10.52492747,219.93,219.85,4.0899]
[1758586311019,3.21492747,219.92,219.85,11.2999]
[1758586311414,7.31,219.91,219.87,0.03275987]
[1758586311616,3.21492747,219.9,219.87,0.03275987]
[1758586312730,10.52492747,219.9,219.87,0.03275987]
[1758586313025,3.21492747,219.89,219.87,0.03275987]
[1758586316721,3.21492747,219.89,219.88,7.21]
[1758586316927,7.31,219.92,219.87,0.03275987]
[1758586317228,7.31,219.9,219.87,0.03275987]
[1758586317425,3.21492747,219.89,219.87,0.03275987]
[1758586317929,3.21492747,219.88,219.87,0.03275987]
[1758586318128,10.52492747,219.9,219.87,0.03275987]
[1758586318330,10.52492747,219.89,219.87,0.03275987]
[1758586318529,3.21492747,219.88,219.87,0.03275987]
[1758586318825,10.52492747,219.88,219.87,0.03275987]
[1758586333748,3.21492747,219.88,219.87,0.03275987]
[1758586333947,7.62,219.91,219.87,0.03275987]
[1758586334140,7.62,219.89,219.87,0.03275987]
[1758586334442,10.83492747,219.88,219.87,0.03275987]
[1758586337848,10.83492747,219.88,219.79,7.25]
[1758586338151,6.95,219.86,219.79,7.25]
[1758586338449,3.21492747,219.85,219.79,7.25]
[1758586339053,6.95,219.84,219.77,111.5]
[1758586339352,3.21492747,219.83,219.77,111.5]
[1758586340655,0.03216795,219.84,219.8,7.25]
[1758586340850,5.08795282,219.93,219.84,63.623]
[1758586341054,6.95,219.96,219.86,7.25]
[1758586341244,6.95,219.96,219.89,4.0891]
[1758586341447,5.08795282,220.0,219.9,7.25]